fUSD/lending_fUSD_20260628
["ID","MTS","AMOUNT","RATE_DAILY","PERIOD"]
[426596321,1782654304000,500.0,0.00037336,120]
[426596320,1782654304000,500.0,0.00037336,120]
[426596325,1782654305000,500.0,0.00037336,120]
[426596324,1782654305000,500.0,0.00037336,120]
[426596323,1782654305000,500.0,0.00037336,120]
[426596326,1782654306000,230.88687198,0.00037336,120]
[426596327,1782654412000,-150.0,0.00013199,2]
[426596328,1782654442000,-151.0,0.000132,2]
[426596329,1782654442000,-150.0,0.000132,2]
[426596330,1782654442000,-9.02484522,0.000132,2]
[426596333,1782654547000,-142.97515478,0.000132,2]
[426596335,1782654547000,-153.0,0.000132,2]
[426596332,1782654547000,-150.0,0.00013199,2]
[426596336,1782654547000,-150.0,0.000132,2]
[426596337,1782654547000,-152.0,0.000132,2]
[426596338,1782654547000,-151.0,0.000132,2]
[426596339,1782654547000,-152.0,0.000132,2]
[426596341,1782654547000,-151.0,0.000132,2]
[426596340,1782654547000,-150.0,0.000132,2]
[426596334,1782654547000,-151.0,0.000132,2]
[426596343,1782654547000,-150.0,0.000132,2]
[426596344,1782654547000,-151.0,0.000132,2]
[426596346,1782654547000,-152.0,0.000132,2]
[426596345,1782654547000,-153.0,0.000132,2]
[426596347,1782654547000,-151.0,0.000132,2]
[426596348,1782654547000,-151.0,0.000132,2]
[426596350,1782654547000,-152.0,0.000132,2]
[426596349,1782654547000,-150.0,0.000132,2]
[426596351,1782654547000,-151.0,0.000132,2]
[426596352,1782654547000,-151.0,0.000132,2]
[426596342,1782654547000,-151.0,0.000132,2]
[426596353,1782654548000,309.43,0.0001254,2]
[426596354,1782654548000,309.43,0.0001298,2]
[426596355,1782654548000,309.43,0.0001342,2]
[426596387,1782654632000,-896.0,0.00014,2]
[426596388,1782654632000,-150.0,0.00014,2]
[426596386,1782654632000,-901.0,0.00014,2]
[426596385,1782654632000,-887.0,0.00014,2]
[426596384,1782654632000,-153.0,0.00014,2]
[426596382,1782654632000,-150.0,0.00014,2]
[426596383,1782654632000,-915.0,0.00014,2]
[426596380,1782654632000,-151.0,0.00014,2]
[426596381,1782654632000,-194.10523726,0.00014,2]
[426596379,1782654632000,-150.0,0.00014,2]
[426596369,1782654632000,-500.0,0.000139,2]
[426596376,1782654632000,-150.0,0.000139,2]
[426596377,1782654632000,-250.0,0.00014,2]
[426596389,1782654632000,-894.0,0.00014,2]
[426596375,1782654632000,-150.0,0.000139,2]
[426596374,1782654632000,-151.0,0.000139,2]
[426596368,1782654632000,-450.59392612,0.00013888,2]
[426596373,1782654632000,-150.0,0.000139,2]
[426596366,1782654632000,-274.98279497,0.0001386,2]
[426596371,1782654632000,-151.0,0.000139,2]
[426596364,1782654632000,-34.44720503,0.0001386,2]
[426596378,1782654632000,-152.0,0.00014,2]
[426596393,1782654632000,-911.0,0.00014,2]
[426596408,1782654632000,-500.0,0.00014964,2]
[426596390,1782654632000,-883.0,0.00014,2]
[426596415,1782654632000,-1011.25203398,0.0001602,2]
[426596412,1782654632000,-158.68,0.0001531,2]
[426596414,1782654632000,-300.0,0.00016,2]
[426596411,1782654632000,-4592.67,0.0001531,2]
[426596413,1782654632000,-1089.52896726,0.0001592,2]
[426596406,1782654632000,-160.0,0.00014316,2]
[426596392,1782654632000,-900.0,0.00014,2]
[426596404,1782654632000,-160.0,0.0001424,2]
[426596410,1782654632000,-500.0,0.00014999,2]
[426596407,1782654632000,-500.0,0.00014964,2]
[426596403,1782654632000,-152.0,0.00014216,2]
[426596409,1782654632000,-500.85147294,0.00014999,2]
[426596400,1782654632000,-275.0,0.00014038,2]
[426596402,1782654632000,-151.0,0.00014216,2]
[426596401,1782654632000,-152.0,0.00014216,2]
[426596399,1782654632000,-913.0,0.00014026,2]
[426596397,1782654632000,-151.0,0.00014,2]
[426596396,1782654632000,-882.0,0.00014,2]
[426596395,1782654632000,-900.0,0.00014,2]
[426596391,1782654632000,-151.0,0.00014,2]
[426596398,1782654632000,-151.0,0.00014,2]
[426596394,1782654632000,-150.0,0.00014,2]
[426596405,1782654632000,-160.61760521,0.000143,2]
[426596455,1782654633000,-500.0,0.00019495,2]
[426596451,1782654633000,-500.0,0.00019495,2]
[426596450,1782654633000,-500.0,0.00019495,2]
[426596449,1782654633000,-500.0,0.00019495,2]
[426596440,1782654633000,-500.0,0.00019495,2]
[426596447,1782654633000,-500.0,0.00019495,2]
[426596445,1782654633000,-500.0,0.00019495,2]
[426596443,1782654633000,-500.0,0.00019495,2]
[426596448,1782654633000,-500.0,0.00019495,2]
[426596456,1782654633000,-500.0,0.00019495,2]
[426596465,1782654633000,-500.0,0.00019495,2]
[426596454,1782654633000,-500.0,0.00019495,2]
[426596457,1782654633000,-500.0,0.00019495,2]
[426596458,1782654633000,-528.36712065,0.00019495,2]
[426596460,1782654633000,-500.0,0.00019495,2]
[426596459,1782654633000,-500.0,0.00019495,2]
[426596461,1782654633000,-500.0,0.00019495,2]
[426596463,1782654633000,-500.0,0.00019495,2]
[426596466,1782654633000,-500.0,0.00019495,2]
[426596462,1782654633000,-500.0,0.00019495,2]
[426596464,1782654633000,-500.0,0.00019495,2]
[426596446,1782654633000,-407.36282774,0.00019495,2]
[426596453,1782654633000,-500.0,0.00019495,2]
[426596442,1782654633000,-500.0,0.00019495,2]
[426596433,1782654633000,-500.0,0.00019495,2]
[426596441,1782654633000,-500.0,0.00019495,2]
[426596416,1782654633000,-10000.0,0.00016169,2]
[426596417,1782654633000,-151.0,0.00016299,2]
[426596418,1782654633000,-151.0,0.00016299,2]
[426596421,1782654633000,-178.56732125,0.00018384,2]
[426596419,1782654633000,-1500.0,0.00016696,2]
[426596420,1782654633000,-363.80960081,0.00018057,2]
[426596422,1782654633000,-2753.69,0.00018681,2]
[426596423,1782654633000,-501.05770611,0.00018953,2]
[426596424,1782654633000,-153.0,0.00019,2]
[426596425,1782654633000,-154.95,0.00019016,2]
[426596426,1782654633000,-172.04,0.00019175,2]
[426596444,1782654633000,-500.0,0.00019495,2]
[426596428,1782654633000,-491.29986354,0.0001948,2]
[426596430,1782654633000,-500.0,0.00019495,2]
[426596468,1782654633000,-500.0,0.00019495,2]
[426596432,1782654633000,-500.0,0.00019495,2]
[426596427,1782654633000,-399.99999999,0.000194,2]
[426596434,1782654633000,-500.0,0.00019495,2]
[426596431,1782654633000,-500.0,0.00019495,2]
[426596436,1782654633000,-500.0,0.00019495,2]
[426596437,1782654633000,-500.0,0.00019495,2]
[426596438,1782654633000,-500.0,0.00019495,2]
[426596435,1782654633000,-500.0,0.00019495,2]
[426596439,1782654633000,-500.0,0.00019495,2]
[426596429,1782654633000,-1277.0,0.00019481,2]
[426596467,1782654633000,-500.0,0.00019495,2]
[426596452,1782654633000,-500.0,0.00019495,2]
[426596471,1782654633000,-500.0,0.00019495,2]
[426596500,1782654633000,-154.95,0.00020017,2]
[426596497,1782654633000,-663.0,0.0002,2]
[426596504,1782654633000,-20527.96,0.00020139,2]
[426596501,1782654633000,-430.65,0.00020096,2]
[426596508,1782654633000,-245.5869705,0.00020246,2]
[426596503,1782654633000,-441.73564743,0.000201,2]
[426596505,1782654633000,-214.66,0.00020164,2]
[426596506,1782654633000,-399.99999999,0.000202,2]
[426596507,1782654633000,-1196.07144451,0.000202,2]
[426596509,1782654633000,-1418.37358815,0.000203,2]
[426596510,1782654633000,-441.73564743,0.000203,2]
[426596511,1782654633000,-1418.37358815,0.000205,2]
[426596515,1782654633000,-1418.37358815,0.000207,2]
[426596512,1782654633000,-154.95,0.00020518,2]
[426596519,1782654633000,-490.0,0.00021,2]
[426596514,1782654633000,-1301.12264038,0.000206,2]
[426596513,1782654633000,-430.65,0.00020598,2]
[426596518,1782654633000,-1418.37358815,0.000209,2]
[426596517,1782654633000,-194.833,0.00020722,2]
[426596516,1782654633000,-1637.83,0.00020722,2]
[426596520,1782654633000,-572.0,0.00021,2]
[426596521,1782654633000,-152.0,0.00021,2]
[426596469,1782654633000,-500.0,0.00019495,2]
[426596498,1782654633000,-153.0,0.0002,2]
[426596499,1782654633000,-159.0,0.0002,2]
[426596502,1782654633000,-1418.37358815,0.000201,2]
[426596491,1782654633000,-572.0,0.0002,2]
[426596494,1782654633000,-332.0,0.0002,2]
[426596472,1782654633000,-1141.6493,0.00019499,2]
[426596473,1782654633000,-1418.37358815,0.000195,2]
[426596474,1782654633000,-441.73564743,0.000195,2]
[426596477,1782654633000,-399.99999999,0.000196,2]
[426596475,1782654633000,-154.95,0.00019517,2]
[426596476,1782654633000,-211.25952734,0.00019555,2]
[426596480,1782654633000,-399.99999999,0.000198,2]
[426596478,1782654633000,-1418.37358815,0.000197,2]
[426596479,1782654633000,-441.73564743,0.000197,2]
[426596485,1782654633000,-441.73564743,0.000199,2]
[426596483,1782654633000,-1000.0,0.00019829,2]
[426596470,1782654633000,-500.0,0.00019495,2]
[426596482,1782654633000,-606.52,0.00019822,2]
[426596481,1782654633000,-200.0,0.00019805,2]
[426596496,1782654633000,-153.0,0.0002,2]
[426596492,1782654633000,-152.0,0.0002,2]
[426596490,1782654633000,-490.0,0.0002,2]
[426596493,1782654633000,-162.0,0.0002,2]
[426596495,1782654633000,-154.0,0.0002,2]
[426596487,1782654633000,-180.18,0.00019971,2]
[426596486,1782654633000,-150.0,0.0001993,2]
[426596489,1782654633000,-399.99999999,0.0002,2]
[426596484,1782654633000,-1418.37358815,0.000199,2]
[426596488,1782654633000,-252.23760588,0.00019997,2]
[426596562,1782654634000,-151.52734751,0.00021648,2]
[426596553,1782654634000,-1418.37358815,0.000213,2]
[426596551,1782654634000,-430.65,0.00021101,2]
[426596550,1782654634000,-151.0,0.000211,2]
[426596552,1782654634000,-268.88738468,0.00021272,2]
[426596555,1782654634000,-150.0,0.0002146,2]
[426596557,1782654634000,-150.0,0.00021578,2]
[426596554,1782654634000,-151.52734751,0.00021374,2]
[426596558,1782654634000,-213.0,0.00021578,2]
[426596556,1782654634000,-150.0,0.0002146,2]
[426596565,1782654634000,-210.86748932,0.00021912,2]
[426596567,1782654634000,-490.0,0.00022,2]
[426596561,1782654634000,-430.65,0.00021603,2]
[426596563,1782654634000,-2500.0,0.00021665,2]
[426596559,1782654634000,-302.46,0.00021578,2]
[426596560,1782654634000,-159.38643302,0.00021578,2]
[426596568,1782654634000,-572.0,0.00022,2]
[426596566,1782654634000,-5000.0,0.00021918,2]
[426596569,1782654634000,-152.0,0.00022,2]
[426596570,1782654634000,-332.0,0.00022,2]
[426596572,1782654634000,-663.0,0.00022,2]
[426596571,1782654634000,-168.0,0.00022,2]
[426596548,1782654634000,-151.0,0.000211,2]
[426596564,1782654634000,-200.0,0.00021894,2]
[426596546,1782654634000,-151.0,0.000211,2]
[426596522,1782654634000,-332.0,0.00021,2]
[426596547,1782654634000,-151.0,0.000211,2]
[426596524,1782654634000,-157.0,0.00021,2]
[426596577,1782654634000,-214.66,0.00022685,2]
[426596523,1782654634000,-154.0,0.00021,2]
[426596527,1782654634000,-163.0,0.00021,2]
[426596528,1782654634000,-154.95,0.00021018,2]
[426596530,1782654634000,-151.0,0.000211,2]
[426596525,1782654634000,-663.0,0.00021,2]
[426596529,1782654634000,-1418.37358815,0.000211,2]
[426596526,1782654634000,-163.0,0.00021,2]
[426596531,1782654634000,-151.0,0.000211,2]
[426596533,1782654634000,-151.0,0.000211,2]
[426596549,1782654634000,-151.0,0.000211,2]
[426596532,1782654634000,-151.52734751,0.000211,2]
[426596535,1782654634000,-151.0,0.000211,2]
[426596538,1782654634000,-151.0,0.000211,2]
[426596539,1782654634000,-151.0,0.000211,2]
[426596537,1782654634000,-151.0,0.000211,2]
[426596540,1782654634000,-151.0,0.000211,2]
[426596536,1782654634000,-151.0,0.000211,2]
[426596541,1782654634000,-151.0,0.000211,2]
[426596545,1782654634000,-151.0,0.000211,2]
[426596542,1782654634000,-151.0,0.000211,2]
[426596544,1782654634000,-151.0,0.000211,2]
[426596543,1782654634000,-151.0,0.000211,2]
[426596534,1782654634000,-151.0,0.000211,2]
[426596573,1782654634000,-430.65,0.00022106,2]
[426596621,1782654634000,-304.48742155,0.00024981,2]
[426596574,1782654634000,-420.34,0.00022466,2]
[426596605,1782654634000,-10049.28536891,0.00024873,2]
[426596606,1782654634000,-500.0,0.00024884,2]
[426596608,1782654634000,-500.0,0.00024973,2]
[426596607,1782654634000,-500.0,0.00024973,2]
[426596610,1782654634000,-500.0,0.00024973,2]
[426596615,1782654634000,-302.63239188,0.00024974,2]
[426596609,1782654634000,-500.0,0.00024973,2]
[426596611,1782654634000,-243.5596187,0.00024974,2]
[426596612,1782654634000,-158.20629797,0.00024974,2]
[426596614,1782654634000,-214.62747672,0.00024974,2]
[426596613,1782654634000,-382.57683036,0.00024974,2]
[426596616,1782654634000,-328.33089337,0.00024981,2]
[426596618,1782654634000,-222.54732945,0.00024981,2]
[426596617,1782654634000,-152.06985741,0.00024981,2]
[426596619,1782654634000,-329.87088961,0.00024981,2]
[426596620,1782654634000,-160.76185643,0.00024981,2]
[426596624,1782654634000,-178.35953942,0.00024984,2]
[426596626,1782654634000,-300.20071233,0.00024984,2]
[426596622,1782654634000,-326.94921865,0.00024981,2]
[426596625,1782654634000,-195.95156007,0.00024984,2]
[426596623,1782654634000,-153.92538059,0.00024984,2]
[426596627,1782654634000,-207.30982359,0.00024984,2]
[426596628,1782654634000,-350.89836868,0.00024984,2]
[426596599,1782654634000,-174.990067,0.00024485,14]
[426596603,1782654634000,-153.17,0.00024658,2]
[426596575,1782654634000,-1277.0,0.00022481,2]
[426596604,1782654634000,-153.33,0.00024658,2]
[426596576,1782654634000,-303.69182785,0.00022515,2]
[426596578,1782654634000,-490.0,0.00023,2]
[426596580,1782654634000,-166.0,0.00023,2]
[426596581,1782654634000,-332.0,0.00023,2]
[426596579,1782654634000,-572.0,0.00023,2]
[426596584,1782654634000,-180.18,0.00023299,2]
[426596583,1782654634000,-318.61806724,0.00023295,2]
[426596582,1782654634000,-663.0,0.00023,2]
[426596586,1782654634000,-151.31619594,0.00023714,2]
[426596585,1782654634000,-191.28841518,0.00023714,2]
[426596588,1782654634000,-164.9354448,0.00023721,2]
[426596587,1782654634000,-164.16544668,0.00023721,2]
[426596601,1782654634000,-1000.0,0.00024658,2]
[426596593,1782654634000,-176.07419416,0.00023724,2]
[426596592,1782654634000,-175.44918434,0.00023724,2]
[426596591,1782654634000,-150.10035617,0.00023724,2]
[426596590,1782654634000,-163.47460933,0.00023721,2]
[426596594,1782654634000,-490.0,0.00024,2]
[426596595,1782654634000,-572.0,0.00024,2]
[426596597,1782654634000,-663.0,0.00024,2]
[426596596,1782654634000,-332.0,0.00024,2]
[426596598,1782654634000,-229.844395,0.00024485,14]
[426596600,1782654634000,-399.21290199,0.00024522,2]
[426596602,1782654634000,-287.44,0.00024658,2]
[426596589,1782654634000,-152.24371078,0.00023721,2]
[426596667,1782654635000,-356.71907885,0.00025825,2]
[426596666,1782654635000,-307.85076118,0.00025825,2]
[426596664,1782654635000,-189.16121905,0.00025821,2]
[426596665,1782654635000,-490.42382798,0.00025821,2]
[426596657,1782654635000,-244.53997899,0.00025821,2]
[426596662,1782654635000,-456.73113233,0.00025821,2]
[426596661,1782654635000,-222.11026954,0.00025821,2]
[426596660,1782654635000,-494.80633441,0.00025821,2]
[426596654,1782654635000,-304.13971481,0.00025821,2]
[426596670,1782654635000,-391.90312014,0.00025825,2]
[426596663,1782654635000,-277.23674171,0.00025821,2]
[426596669,1782654635000,-280.91597638,0.00025825,2]
[426596676,1782654635000,-444.57506737,0.00025825,2]
[426596671,1782654635000,-243.67314914,0.00025825,2]
[426596673,1782654635000,-160.26809834,0.00025825,2]
[426596672,1782654635000,-159.64822018,0.00025825,2]
[426596674,1782654635000,-450.3010685,0.00025825,2]
[426596677,1782654635000,-526.34755303,0.00025825,2]
[426596678,1782654635000,-528.22258249,0.00025825,2]
[426596679,1782654635000,-590.75608747,0.00025825,2]
[426596680,1782654635000,-287.03462764,0.00025825,2]
[426596675,1782654635000,-414.61964718,0.00025825,2]
[426596681,1782654635000,-309.91593226,0.00025825,2]
[426596655,1782654635000,-239.22453942,0.00025821,2]
[426596668,1782654635000,-230.02974778,0.00025825,2]
[426596658,1782654635000,-225.61947943,0.00025821,2]
[426596648,1782654635000,-429.25495344,0.00025814,2]
[426596659,1782654635000,-321.52371287,0.00025821,2]
[426596629,1782654635000,-352.14838833,0.00024984,2]
[426596633,1782654635000,-578.0,0.00025,2]
[426596636,1782654635000,-214.66,0.00025205,2]
[426596630,1782654635000,-154.95796613,0.00024984,2]
[426596631,1782654635000,-175.62984226,0.00024984,2]
[426596632,1782654635000,-508.7691721,0.00025,2]
[426596634,1782654635000,-350.0,0.00025,2]
[426596637,1782654635000,-1277.0,0.00025481,2]
[426596635,1782654635000,-669.0,0.00025,2]
[426596638,1782654635000,-7358.8,0.00025786,2]
[426596639,1782654635000,-11530.02,0.00025786,2]
[426596640,1782654635000,-534.03174267,0.00025799,2]
[426596641,1782654635000,-205.83332694,0.00025814,2]
[426596642,1782654635000,-487.1192374,0.00025814,2]
[426596683,1782654635000,-268.38632348,0.00025825,2]
[426596643,1782654635000,-316.41259595,0.00025814,2]
[426596646,1782654635000,-157.07205747,0.00025814,2]
[426596644,1782654635000,-229.82680135,0.00025814,2]
[426596647,1782654635000,-573.86524554,0.00025814,2]
[426596645,1782654635000,-176.66070945,0.00025814,2]
[426596649,1782654635000,-453.94858782,0.00025814,2]
[426596652,1782654635000,-314.68379172,0.00025821,2]
[426596650,1782654635000,-253.26605627,0.00025814,2]
[426596651,1782654635000,-1484.0,0.00025821,5]
[426596653,1782654635000,-492.49634005,0.00025821,2]
[426596656,1782654635000,-445.09465889,0.00025821,2]
[426596682,1782654635000,-351.25968453,0.00025825,2]
[426596685,1782654635000,-153.17,0.00025925,7]
[426596693,1782654635000,-730.6788561,0.00026374,2]
[426596710,1782654635000,-157.34189586,0.00026381,2]
[426596712,1782654635000,-656.66178674,0.00026381,2]
[426596715,1782654635000,-478.44907885,0.00026381,2]
[426596719,1782654635000,-442.63758152,0.00026381,2]
[426596721,1782654635000,-482.2855693,0.00026381,2]
[426596720,1782654635000,-659.74177922,0.00026381,2]
[426596722,1782654635000,-444.22053908,0.00026381,2]
[426596684,1782654635000,-211.15266271,0.00025825,2]
[426596724,1782654635000,-184.20775577,0.00026381,2]
[426596725,1782654635000,-608.9748431,0.00026381,2]
[426596728,1782654635000,-401.62501627,0.00026381,2]
[426596727,1782654635000,-378.32243811,0.00026381,2]
[426596726,1782654635000,-554.47348342,0.00026381,2]
[426596729,1782654635000,-653.8984373,0.00026381,2]
[426596730,1782654635000,-500.0,0.00026383,2]
[426596731,1782654635000,-500.0,0.00026383,2]
[426596732,1782654635000,-500.0,0.00026383,2]
[426596734,1782654635000,-500.0,0.00026384,2]
[426596735,1782654635000,-174.81990942,0.00026385,2]
[426596736,1782654635000,-311.72619887,0.00026385,2]
[426596737,1782654635000,-399.47393589,0.00026385,2]
[426596738,1782654635000,-461.77614178,0.00026385,2]
[426596739,1782654635000,-535.07861827,0.00026385,2]
[426596733,1782654635000,-500.0,0.00026383,2]
[426596740,1782654635000,-460.05949555,0.00026385,2]
[426596717,1782654635000,-408.24451778,0.00026381,2]
[426596713,1782654635000,-456.20957222,0.00026381,2]
[426596723,1782654635000,-287.07101529,0.00026381,2]
[426596711,1782654635000,-244.34449759,0.00026381,2]
[426596691,1782654635000,-180926.2438728,0.0002636,2]
[426596689,1782654635000,-397.57664772,0.00026274,2]
[426596718,1782654635000,-489.07995799,0.00026381,2]
[426596687,1782654635000,-10049.2853689,0.00025978,2]
[426596690,1782654635000,-1678.1176589,0.00026308,2]
[426596692,1782654635000,-245.87417169,0.00026374,2]
[426596686,1782654635000,-153.33,0.00025925,7]
[426596694,1782654635000,-474.61889392,0.00026374,2]
[426596695,1782654635000,-411.66665387,0.00026374,2]
[426596696,1782654635000,-430.41819537,0.00026374,2]
[426596697,1782654635000,-353.32141889,0.00026374,2]
[426596698,1782654635000,-230.20183412,0.00026374,2]
[426596688,1782654635000,-150.0,0.00026133,5]
[426596702,1782654635000,-222.0306946,0.00026374,2]
[426596699,1782654635000,-428.11548402,0.00026374,2]
[426596714,1782654635000,-383.35189707,0.00026381,2]
[426596709,1782654635000,-380.08294999,0.00026381,2]
[426596707,1782654635000,-605.26478376,0.00026374,2]
[426596708,1782654635000,-506.53211255,0.00026374,2]
[426596716,1782654635000,-667.64198834,0.00026381,2]
[426596705,1782654635000,-643.88243016,0.00026374,2]
[426596704,1782654635000,-209.29198147,0.00026374,2]
[426596700,1782654635000,-407.13594905,0.00026374,2]
[426596701,1782654635000,-314.14411494,0.00026374,2]
[426596703,1782654635000,-765.15366072,0.00026374,2]
[426596706,1782654635000,-241.65419928,0.00026374,2]
[426596752,1782654636000,-574.06925529,0.00026385,2]
[426596761,1782654636000,-201.677013,0.00026549,2]
[426596755,1782654636000,-536.77264696,0.00026385,2]
[426596757,1782654636000,-212.93667001,0.00026385,2]
[426596759,1782654636000,-8703.17298939,0.00026549,2]
[426596758,1782654636000,-422.30532542,0.00026385,2]
[426596756,1782654636000,-222.28753369,0.00026385,2]
[426596754,1782654636000,-526.88952679,0.00026385,2]
[426596753,1782654636000,-464.87389839,0.00026385,2]
[426596746,1782654636000,-319.29644036,0.00026385,2]
[426596749,1782654636000,-621.92947077,0.00026385,2]
[426596745,1782654636000,-213.9414715,0.00026385,2]
[426596750,1782654636000,-701.79673737,0.00026385,2]
[426596747,1782654636000,-320.53619669,0.00026385,2]
[426596744,1782654636000,-487.34629829,0.00026385,2]
[426596748,1782654636000,-600.40142466,0.00026385,2]
[426596743,1782654636000,-587.8546802,0.00026385,2]
[426596741,1782654636000,-244.30883762,0.00026385,2]
[426596763,1782654636000,-25108.9151778,0.00026549,2]
[426596751,1782654636000,-704.29677666,0.00026385,2]
[426596762,1782654636000,-3383.7888003,0.00026549,2]
[426596742,1782654636000,-561.83195276,0.00026385,2]
[426596764,1782654636000,-264.260098,0.00026549,2]
[426596760,1782654636000,-28202.32236161,0.00026549,2]
[426596784,1782654636000,-16946.21415183,0.000268,2]
[426596783,1782654636000,-500.0,0.00026799,2]
[426596781,1782654636000,-500.0,0.00026799,2]
[426596782,1782654636000,-500.0,0.00026799,2]
[426596780,1782654636000,-623.10999442,0.00026799,2]
[426596777,1782654636000,-403.78933645,0.00026784,14]
[426596776,1782654636000,-228.89013902,0.00026784,14]
[426596778,1782654636000,-604.04469828,0.00026784,14]
[426596774,1782654636000,-518.73081926,0.00026773,2]
[426596779,1782654636000,-500.0,0.00026799,2]
[426596772,1782654636000,-180.20999459,0.00026719,2]
[426596773,1782654636000,-247.0,0.00026756,2]
[426596771,1782654636000,-170.0,0.00026718,2]
[426596769,1782654636000,-185.26,0.00026684,2]
[426596767,1782654636000,-185.19,0.00026684,2]
[426596768,1782654636000,-151.0,0.00026684,2]
[426596770,1782654636000,-185.26,0.00026684,2]
[426596766,1782654636000,-151.0,0.00026684,2]
[426596765,1782654636000,-151.0,0.00026684,2]
[426596775,1782654636000,-596.79127281,0.00026782,2]
[426596789,1782654638000,-1339.82227465,0.000268,2]
[426596788,1782654638000,-1785.87,0.00017726,2]
[426596790,1782654638000,-58762.50000001,0.000268,2]
[426596795,1782654638000,-12729.40951622,0.000268,2]
[426596791,1782654638000,-867.61,0.000268,2]
[426596793,1782654638000,-1044.93223085,0.000268,2]
[426596794,1782654638000,-1780.8007718,0.000268,2]
[426596792,1782654638000,-895.83084527,0.000268,2]
[426596814,1782654640000,-1792.92,0.000268,2]
[426596813,1782654640000,-2674.76462954,0.000268,2]
[426596815,1782654640000,-1269.45189618,0.000268,2]
[426596816,1782654640000,-4087.68980979,0.000268,2]
[426596818,1782654640000,-75996.28034483,0.000268,2]
[426596819,1782654640000,-96971.2,0.000268,2]
[426596821,1782654640000,-900.0,0.000269,9]
[426596820,1782654640000,-400.0,0.000268,9]
[426596822,1782654640000,-956.4420759,0.00026934,2]
[426596817,1782654640000,-352.37,0.000268,2]
[426596853,1782654641000,-190.54628438,0.00027397,2]
[426596855,1782654641000,-571.63885315,0.00027397,2]
[426596852,1782654641000,-341.31150633,0.00027397,2]
[426596854,1782654641000,-381.09256877,0.00027397,2]
[426596857,1782654641000,-170.82491356,0.00027397,2]
[426596856,1782654641000,-762.18513753,0.00027397,2]
[426596858,1782654641000,-475.91,0.000274,7]
[426596861,1782654641000,-500.0,0.000275,7]
[426596862,1782654641000,-573.62,0.00027505,2]
[426596859,1782654641000,-160.92014735,0.000274,2]
[426596860,1782654641000,-345.0,0.00027445,2]
[426596865,1782654641000,-907.89717564,0.00027774,2]
[426596863,1782654641000,-700.0,0.00027606,2]
[426596866,1782654641000,-984.99268011,0.00027781,2]
[426596868,1782654641000,-1052.69510605,0.00027785,2]
[426596867,1782654641000,-980.84765596,0.00027781,2]
[426596873,1782654641000,-397.57664766,0.00028182,2]
[426596872,1782654641000,-10000.0,0.00028,10]
[426596869,1782654641000,-1056.44516499,0.00027785,2]
[426596870,1782654641000,-261.04,0.00027907,2]
[426596874,1782654641000,-10049.2853689,0.00028187,2]
[426596876,1782654641000,-573.86,0.00028327,2]
[426596850,1782654641000,-644.75350823,0.00027397,2]
[426596864,1782654641000,-606.52,0.0002775,2]
[426596849,1782654641000,-429.83567215,0.00027397,2]
[426596829,1782654641000,-880.37097082,0.00026945,2]
[426596851,1782654641000,-170.65575316,0.00027397,2]
[426596823,1782654641000,-756.5809797,0.00026934,2]
[426596824,1782654641000,-820.82723342,0.00026941,2]
[426596826,1782654641000,-817.37304663,0.00026941,2]
[426596825,1782654641000,-824.67722402,0.00026941,2]